fUST/lending_fUST_20260118
["ID","MTS","AMOUNT","RATE_DAILY","PERIOD"]
[402455960,1768680654327,-500.0,0.00016712,3]
[402455962,1768680654337,-500.0,0.00016712,3]
[402455964,1768680654347,-500.0,0.00016712,3]
[402455966,1768680654357,-500.0,0.00016712,3]
[402455968,1768680654366,-500.0,0.00016712,3]
[402455970,1768680654377,-1256.22,0.00016712,3]
[402455972,1768680654386,-500.0,0.00016712,3]
[402455974,1768680654396,-500.0,0.00016712,3]
[402455976,1768680654406,-500.0,0.00016712,3]
[402455978,1768680654415,-500.0,0.00016712,3]
[402455980,1768680654425,-500.0,0.00016712,3]
[402455982,1768680654435,-500.0,0.00016712,3]
[402455984,1768680654445,-500.0,0.00016712,3]
[402455986,1768680654455,-1057.38,0.00016712,3]
[402455988,1768680654464,-500.0,0.00016712,3]
[402455990,1768680654474,-500.0,0.00016712,3]
[402455992,1768680654484,-500.0,0.00016712,3]
[402455994,1768680654493,-500.0,0.00016712,3]
[402455996,1768680654502,-500.0,0.00016712,3]
[402455998,1768680654512,-500.0,0.00016712,3]
[402456000,1768680654521,-500.0,0.00016712,3]
[402456002,1768680654531,-500.0,0.00016712,3]
[402456004,1768680654541,-1554.16,0.00016712,3]
[402456006,1768680654550,-500.0,0.00016712,3]
[402456008,1768680654559,-505.39,0.00016712,3]
[402456010,1768680654573,-500.0,0.00016712,3]
[402456012,1768680654584,-909.62,0.00016712,3]
[402456014,1768680654594,-500.0,0.00016712,3]
[402456016,1768680654604,-500.0,0.00016712,3]
[402456018,1768680654614,-701.17,0.00016712,3]
[402456020,1768680654624,-500.0,0.00016712,3]
[402456022,1768680654634,-999.66,0.00016712,3]
[402456025,1768680654644,-500.0,0.00016712,3]
[402456027,1768680654655,-500.0,0.00016712,3]
[402456029,1768680654665,-500.0,0.00016712,3]
[402456031,1768680654676,-500.0,0.00016712,3]
[402456033,1768680654685,-500.0,0.00016712,3]
[402456035,1768680654695,-1052.54,0.00016712,3]
[402456037,1768680654705,-776.94,0.00016712,3]
[402456039,1768680654714,-500.0,0.00016712,3]
[402456041,1768680654724,-965.24,0.00016712,3]
[402456043,1768680654734,-1038.17,0.00016712,3]
[402456045,1768680654744,-500.0,0.00016712,3]
[402456047,1768680654754,-1719.73,0.00016712,3]
[402456049,1768680654764,-1735.2,0.00016712,3]
[402456051,1768680654774,-500.0,0.00016712,3]
[402456053,1768680654784,-500.0,0.00016712,3]
[402456055,1768680654793,-253.82902155,0.00016712,3]
[402456057,1768680654803,-500.0,0.00016712,3]
[402456059,1768680654813,-500.0,0.00016712,3]
[402456061,1768680654822,-500.0,0.00016712,3]
[402456063,1768680654837,-809.67,0.00016712,3]
[402456065,1768680654847,-1140.32,0.00016712,3]
[402456067,1768680654856,-500.0,0.00016712,3]
[402456069,1768680654866,-500.0,0.00016712,3]
[402456071,1768680654876,-204.12,0.00016712,3]
[402456073,1768680654886,-500.0,0.00016712,3]
[402456075,1768680654897,-500.0,0.00016712,3]
[402456077,1768680654907,-500.0,0.00016712,3]
[402456079,1768680654918,-643.79,0.00016712,3]
[402456081,1768680654927,-500.0,0.00016712,3]
[402456083,1768680654937,-500.0,0.00016712,3]
[402456085,1768680654947,-500.0,0.00016712,3]
[402456087,1768680654956,-500.0,0.00016712,3]
[402456089,1768680654967,-500.0,0.00016712,3]
[402456091,1768680654978,-1273.89,0.00016712,3]
[402456093,1768680654987,-500.0,0.00016712,3]
[402456095,1768680654997,-631.51,0.00016712,3]
[402456097,1768680655006,-500.0,0.00016712,3]
[402456099,1768680655016,-628.87,0.00016712,3]
[402456101,1768680655025,-151.0,0.00016712,2]
[402456103,1768680655036,-151.0,0.00016712,2]
[402456105,1768680655046,-1510.19,0.00016712,3]
[402456107,1768680655055,-500.0,0.00016712,3]
[402456109,1768680655066,-624.31598401,0.00016712,3]
[402456112,1768680655078,-500.0,0.00016712,3]
[402456114,1768680655088,-878.72,0.00016712,3]
[402456116,1768680655098,-500.0,0.00016712,3]
[402456118,1768680655107,-500.0,0.00016712,3]
[402456120,1768680655118,-500.0,0.00016712,3]
[402456122,1768680655127,-500.0,0.00016712,3]
[402456124,1768680655137,-903.91,0.00016712,3]
[402456126,1768680655146,-500.0,0.00016712,3]
[402456128,1768680655156,-474.92477012,0.00016712,3]
[402456130,1768680655166,-500.0,0.00016712,3]
[402456131,1768680655176,-500.0,0.00016712,3]
[402456132,1768680655186,-500.0,0.00016712,3]
[402456133,1768680655195,-500.0,0.00016712,3]
[402456134,1768680655205,-500.0,0.00016712,3]
[402456135,1768680655215,-500.0,0.00016712,3]
[402456136,1768680655225,-500.0,0.00016712,3]
[402456137,1768680655236,-1425.71,0.00016712,3]
[402456138,1768680655247,-500.0,0.00016712,3]
[402456139,1768680655258,-500.0,0.00016712,3]
[402456140,1768680655268,-465.90987905,0.00016712,3]
[402456141,1768680655278,-553.19,0.00016712,3]
[402456143,1768680655288,-500.0,0.00016712,3]
[402456145,1768680655297,-500.0,0.00016712,3]
[402456147,1768680655308,-500.0,0.00016712,3]
[402456149,1768680655318,-500.0,0.00016712,3]
[402456151,1768680655327,-500.0,0.00016712,3]
[402456153,1768680655337,-500.0,0.00016712,3]
[402456155,1768680655347,-500.0,0.00016712,3]
[402456157,1768680655357,-500.0,0.00016712,3]
[402456159,1768680655367,-500.0,0.00016712,3]
[402456161,1768680655376,-500.0,0.00016712,3]
[402456163,1768680655386,-392.31626832,0.00016712,3]
[402456165,1768680655395,-500.0,0.00016712,3]
[402456167,1768680655405,-500.0,0.00016712,3]
[402456170,1768680655414,-500.0,0.00016712,3]
[402456172,1768680655426,-500.0,0.00016712,3]
[402456174,1768680655436,-500.0,0.00016712,3]
[402456176,1768680655446,-2083.26,0.00016712,3]
[402456178,1768680655455,-500.0,0.00016712,3]
[402456180,1768680655465,-500.0,0.00016712,3]
[402456182,1768680655478,-500.0,0.00016712,3]
[402456184,1768680655488,-500.0,0.00016712,3]
[402456186,1768680655498,-500.0,0.00016712,3]
[402456188,1768680655509,-500.0,0.00016712,3]
[402456190,1768680655518,-1370.45,0.00016712,3]
[402456192,1768680655528,-500.0,0.00016712,3]
[402456194,1768680655538,-658.95,0.00016712,3]
[402456196,1768680655549,-500.0,0.00016712,3]
[402456198,1768680655559,-500.0,0.00016712,3]
[402456200,1768680655569,-500.0,0.00016712,3]
[402456203,1768680655579,-500.0,0.00016712,3]
[402456204,1768680655588,-500.0,0.00016712,3]
[402456206,1768680655598,-609.79,0.00016712,3]
[402456208,1768680655607,-500.0,0.00016712,3]
[402456210,1768680655617,-1222.64,0.00016712,3]
[402456212,1768680655627,-1860.69,0.00016712,3]
[402456214,1768680655636,-500.0,0.00016712,3]
[402456216,1768680655646,-155.23,0.00016712,3]
[402456218,1768680655655,-500.0,0.00016712,3]
[402456220,1768680655665,-948.78,0.00016712,3]
[402456222,1768680655675,-500.0,0.00016712,3]
[402456224,1768680655684,-1065.95,0.00016712,3]
[402456226,1768680655695,-412.6225604,0.00016712,3]
[402456228,1768680655705,-500.0,0.00016712,3]
[402456230,1768680655714,-907.15,0.00016712,3]
[402456232,1768680655724,-500.0,0.00016712,3]
[402456234,1768680655734,-733.76,0.00016712,3]
[402456237,1768680655744,-500.0,0.00016712,3]
[402456239,1768680655754,-531.61,0.00016712,3]
[402456240,1768680655763,-500.0,0.00016712,3]
[402456243,1768680655773,-500.0,0.00016712,3]
[402456245,1768680655783,-500.0,0.00016712,3]
[402456247,1768680655792,-500.0,0.00016712,3]
[402456249,1768680655802,-500.0,0.00016712,3]
[402456251,1768680655811,-775.8,0.00016712,3]
[402456253,1768680655821,-947.9,0.00016712,3]
[402456255,1768680655835,-1570.13,0.00016712,3]
[402456257,1768680655844,-623.61,0.00016712,3]
[402456259,1768680655854,-500.0,0.00016712,3]
[402456261,1768680655864,-500.0,0.00016712,3]
[402456293,1768680656142,-500.0,0.00016712,3]
[402456295,1768680656159,-500.0,0.00016712,3]
[402456297,1768680656169,-500.0,0.00016712,3]
[402456299,1768680656179,-500.0,0.00016712,3]
[402456301,1768680656189,-586.69345544,0.00016712,3]
[402456303,1768680656199,-500.0,0.00016712,3]
[402456305,1768680656209,-500.0,0.00016712,3]
[402456307,1768680656219,-632.68,0.00016712,3]
[402456310,1768680656230,-500.0,0.00016712,3]
[402456312,1768680656240,-500.0,0.00016712,3]
[402456314,1768680656250,-500.0,0.00016712,3]
[402456316,1768680656260,-1858.88,0.00016712,3]
[402456318,1768680656270,-500.0,0.00016712,3]
[402456320,1768680656280,-6357.57,0.00016712,3]
[402456322,1768680656290,-1319.32,0.00016712,3]
[402456324,1768680656300,-500.0,0.00016712,3]
[402456326,1768680656310,-897.51,0.00016712,3]
[402456328,1768680656319,-601.78,0.00016712,3]
[402456330,1768680656329,-500.0,0.00016712,3]
[402456332,1768680656339,-500.0,0.00016712,3]
[402456334,1768680656349,-539.94,0.00016712,3]
[402456336,1768680656359,-677.0,0.00016712,3]
[402456338,1768680656368,-1793.48,0.00016712,3]
[402456340,1768680656379,-1123.25,0.00016712,3]
[402456342,1768680656390,-500.0,0.00016712,3]
[402456344,1768680656400,-1081.46,0.00016712,3]
[402456347,1768680656410,-500.0,0.00016712,3]
[402456349,1768680656420,-500.0,0.00016712,3]
[402456351,1768680656429,-659.73,0.00016712,3]
[402456353,1768680656439,-500.0,0.00016712,3]
[402456355,1768680656448,-500.0,0.00016712,3]
[402456357,1768680656458,-500.0,0.00016712,3]
[402456359,1768680656468,-1335.7,0.00016712,3]
[402456361,1768680656478,-597.06,0.00016712,3]
[402456363,1768680656488,-558.42,0.00016712,3]
[402456365,1768680656498,-500.0,0.00016712,3]
[402456367,1768680656507,-566.78,0.00016712,3]
[402456369,1768680656517,-500.0,0.00016712,3]
[402456371,1768680656526,-872.79,0.00016712,3]
[402456373,1768680656536,-500.0,0.00016712,3]
[402456375,1768680656545,-688.44,0.00016712,3]
[402456377,1768680656554,-500.0,0.00016712,3]
[402456379,1768680656563,-500.0,0.00016712,3]
[402456381,1768680656573,-500.0,0.00016712,3]
[402456383,1768680656583,-500.0,0.00016712,3]
[402456385,1768680656593,-500.0,0.00016712,3]
[402456387,1768680656603,-500.0,0.00016712,3]
[402456389,1768680656613,-500.0,0.00016712,3]
[402456391,1768680656624,-500.0,0.00016712,3]
[402456393,1768680656633,-500.0,0.00016712,3]
[402456395,1768680656643,-500.0,0.00016712,3]
[402456397,1768680656653,-500.0,0.00016712,3]
[402456399,1768680656663,-500.0,0.00016712,3]
[402456401,1768680656675,-500.0,0.00016712,3]
[402456403,1768680656684,-500.0,0.00016712,3]
[402456405,1768680656695,-500.0,0.00016712,3]
[402456407,1768680656704,-500.0,0.00016712,3]
[402456409,1768680656715,-500.0,0.00016712,3]
[402456412,1768680656726,-543.38,0.00016712,3]
[402456414,1768680656736,-500.0,0.00016712,3]
[402456416,1768680656746,-151.0,0.00016712,2]
[402456418,1768680656755,-151.0,0.00016712,2]
[402456420,1768680656766,-500.0,0.00016712,3]
[402456422,1768680656775,-500.0,0.00016712,3]
[402456424,1768680656785,-151.0,0.00016712,2]
[402456426,1768680656795,-500.0,0.00016712,3]
[402456428,1768680656804,-151.0,0.00016712,2]
[402456430,1768680656814,-500.0,0.00016712,3]
[402456432,1768680656824,-500.0,0.00016712,3]
[402456434,1768680656838,-500.0,0.00016712,3]
[402456436,1768680656848,-500.0,0.00016712,3]
[402456438,1768680656858,-500.0,0.00016712,3]
[402456440,1768680656867,-500.0,0.00016712,3]
[402456442,1768680656878,-500.0,0.00016712,3]
[402456444,1768680656887,-979.4,0.00016712,3]
[402456446,1768680656897,-2738.98,0.00016712,3]
[402456448,1768680656909,-500.0,0.00016712,3]
[402456450,1768680656918,-500.0,0.00016712,3]
[402456452,1768680656928,-500.0,0.00016712,3]
[402456454,1768680656938,-500.0,0.00016712,3]
[402456456,1768680656947,-500.0,0.00016712,3]
[402456458,1768680656957,-500.0,0.00016712,3]
[402456460,1768680656967,-500.0,0.00016712,3]
[402456462,1768680656976,-500.0,0.00016712,3]
[402456464,1768680656986,-500.0,0.00016712,3]
[402456466,1768680656995,-500.0,0.00016712,3]
[402456468,1768680657004,-1020.99,0.00016712,3]
[402456470,1768680657014,-500.0,0.00016712,3]
[402456472,1768680657024,-817.72,0.00016712,3]
[402456474,1768680657034,-500.0,0.00016712,3]
[402456476,1768680657043,-500.0,0.00016712,3]
[402456478,1768680657052,-606.48,0.00016712,3]
[402456480,1768680657062,-538.58,0.00016712,3]
[402456482,1768680657071,-500.0,0.00016712,3]
[402456484,1768680657080,-500.0,0.00016712,3]
[402456486,1768680657091,-500.0,0.00016712,3]
[402456488,1768680657100,-500.0,0.00016712,3]
[402456490,1768680657111,-500.0,0.00016712,3]
[402456492,1768680657120,-500.0,0.00016712,3]
[402456494,1768680657130,-474.79408976,0.00016712,3]
[402456496,1768680657139,-647.35,0.00016712,3]
[402456498,1768680657149,-584.81708203,0.00016712,3]
[402456500,1768680657159,-500.0,0.00016712,3]
[402456503,1768680657168,-1443.33,0.00016712,3]
[402456505,1768680657178,-1261.68,0.00016712,3]
[402456506,1768680657187,-500.0,0.00016712,3]
[402456509,1768680657196,-1087.65,0.00016712,3]
[402456511,1768680657206,-500.0,0.00016712,3]
[402456513,1768680657216,-500.0,0.00016712,3]
[402456515,1768680657225,-547.25,0.00016712,3]
[402456517,1768680657235,-500.0,0.00016712,3]
[402456519,1768680657244,-1265.32,0.00016712,3]
[402456521,1768680657255,-500.0,0.00016712,3]
[402456523,1768680657264,-1310.48,0.00016712,3]
[402456525,1768680657274,-1112.25,0.00016712,3]
[402456527,1768680657284,-500.0,0.00016712,3]
[402456529,1768680657294,-500.0,0.00016712,3]
[402456531,1768680657304,-2390.17,0.00016712,3]
[402456533,1768680657313,-500.0,0.00016712,3]
[402456535,1768680657322,-500.0,0.00016712,3]
[402456537,1768680657331,-500.0,0.00016712,3]
[402456539,1768680657341,-500.0,0.00016712,3]
[402456541,1768680657352,-500.0,0.00016712,3]
[402456543,1768680657362,-500.0,0.00016712,3]
[402456545,1768680657372,-500.0,0.00016712,3]
[402456547,1768680657382,-500.0,0.00016712,3]
[402456549,1768680657391,-500.0,0.00016712,3]
[402456551,1768680657401,-582.1,0.00016712,3]
[402456553,1768680657411,-500.0,0.00016712,3]
[402456555,1768680657421,-500.0,0.00016712,3]
[402456557,1768680657431,-932.84,0.00016712,3]
[402456559,1768680657441,-725.5,0.00016712,3]
[402456562,1768680657451,-500.0,0.00016712,3]
[402456564,1768680657461,-500.0,0.00016712,2]
[402456566,1768680657470,-500.0,0.00016712,3]
[402456568,1768680657480,-500.0,0.00016712,3]
[402456570,1768680657489,-500.0,0.00016712,3]
[402456572,1768680657500,-500.0,0.00016712,2]
[402456574,1768680657509,-503.23047835,0.00016712,3]
[402456576,1768680657519,-500.0,0.00016712,3]
[402456578,1768680657528,-500.0,0.00016712,3]
[402456580,1768680657538,-500.0,0.00016712,2]
[402456582,1768680657548,-500.0,0.00016712,3]
[402456584,1768680657558,-500.0,0.00016712,3]
[402456586,1768680657567,-500.0,0.00016712,3]
[402456588,1768680657577,-500.0,0.00016712,3]
[402456590,1768680657587,-500.0,0.00016712,3]
[402456592,1768680657596,-500.0,0.00016712,3]
[402456594,1768680657607,-500.0,0.00016712,3]
[402456596,1768680657617,-500.0,0.00016712,3]
[402456598,1768680657627,-500.0,0.00016712,3]
[402456600,1768680657637,-500.0,0.00016712,3]
[402456602,1768680657646,-500.0,0.00016712,3]
[402456605,1768680657657,-500.0,0.00016712,3]
[402456607,1768680657667,-500.0,0.00016712,2]
[402456609,1768680657677,-1018.98,0.00016712,3]
[402456611,1768680657687,-500.0,0.00016712,3]
[402456613,1768680657697,-500.0,0.00016712,3]
[402456615,1768680657707,-968.96,0.00016712,3]
[402456617,1768680657718,-570.16,0.00016712,3]
[402456619,1768680657728,-500.0,0.00016712,3]
[402456621,1768680657737,-500.0,0.00016712,3]
[402456623,1768680657747,-500.0,0.00016712,3]
[402456625,1768680657759,-500.0,0.00016712,3]
[402456627,1768680657768,-500.0,0.00016712,3]
[402456629,1768680657778,-500.0,0.00016712,3]
[402456631,1768680657787,-500.0,0.00016712,3]
[402456633,1768680657797,-500.0,0.00016712,3]
[402456635,1768680657808,-817.35,0.00016712,3]
[402456637,1768680657818,-500.0,0.00016712,3]
[402456639,1768680657830,-500.0,0.00016712,3]
[402456641,1768680657840,-2319.11,0.00016712,3]
[402456643,1768680657851,-500.0,0.00016712,3]
[402456645,1768680657861,-500.0,0.00016712,3]
[402456647,1768680657871,-809.91,0.00016712,3]
[402456649,1768680657881,-552.32,0.00016712,3]
[402456651,1768680657891,-1146.04,0.00016712,3]
[402456653,1768680657901,-500.0,0.00016712,3]
[402456655,1768680657911,-500.0,0.00016712,3]
[402456658,1768680657921,-1123.61,0.00016712,3]
[402456660,1768680657930,-500.0,0.00016712,2]
[402456662,1768680657940,-240.51675223,0.0001674,2]
[402456664,1768680657949,-31110.0,0.00016835,2]
[402456666,1768680657959,-151.0,0.00016835,2]
[402456668,1768680657969,-461.67526834,0.00016835,2]
[402456670,1768680657978,-311.85701,0.00016835,2]
[402456672,1768680657989,-2230.315306,0.00016835,2]
[402456674,1768680657999,-5888.0,0.00016922,2]
[402456676,1768680658008,-500.0,0.0001696,2]
[402456678,1768680658019,-168.0,0.00016967,2]
[402456680,1768680658028,-500.0,0.00016986,3]
[402456682,1768680658038,-500.0,0.00016986,3]
[402456684,1768680658048,-953.25120035,0.00016986,2]
[402456686,1768680658058,-702.73,0.00016986,3]
[402456688,1768680658068,-500.0,0.00016986,3]
[402456690,1768680658078,-500.0,0.00016986,3]
[402456692,1768680658088,-620.31508398,0.00016986,3]
[402456694,1768680658098,-901.49,0.00016986,3]
[402456696,1768680658108,-500.0,0.00016986,3]
[402456698,1768680658118,-500.0,0.00016986,3]
[402456700,1768680658129,-500.0,0.00016986,3]
[402456702,1768680658139,-500.0,0.00016986,3]
[402456704,1768680658149,-500.0,0.00016986,3]
[402456706,1768680658158,-500.0,0.00016986,3]
[402456708,1768680658167,-578.0,0.00016986,3]
[402456710,1768680658177,-542.82,0.00016986,3]
[402456712,1768680658186,-500.0,0.00016986,3]
[402456714,1768680658195,-574.11,0.00016986,3]
[402456717,1768680658210,-691.15,0.00016986,3]
[402456719,1768680658221,-1047.7,0.00016986,3]
[402456721,1768680658231,-500.0,0.00016986,3]
[402456723,1768680658241,-500.0,0.00016986,3]
[402456725,1768680658251,-500.0,0.00016986,3]
[402456727,1768680658261,-317.66,0.00016986,3]
[402456730,1768680658271,-500.0,0.00016986,3]
[402456732,1768680658281,-500.0,0.00016986,3]
[402456734,1768680658291,-500.0,0.00016986,3]
[402456736,1768680658301,-499.44798613,0.00016986,3]
[402456738,1768680658312,-500.0,0.00016986,3]
[402456740,1768680658322,-716.8,0.00016986,3]
[402456742,1768680658332,-500.0,0.00016986,3]
[402456744,1768680658342,-500.0,0.00016986,3]
[402456746,1768680658352,-559.01,0.00016986,3]
[402456748,1768680658362,-605.0,0.00016986,3]
[402456750,1768680658372,-500.0,0.00016986,3]
[402456752,1768680658382,-500.0,0.00016986,3]
[402456754,1768680658391,-500.0,0.00016986,3]
[402456757,1768680658402,-548.05,0.00016986,3]
[402456759,1768680658411,-500.0,0.00016986,3]
[402456760,1768680658422,-500.0,0.00016986,3]
[402456763,1768680658432,-500.0,0.00016986,3]
[402456765,1768680658442,-500.0,0.00016986,3]
[402456767,1768680658452,-946.33,0.00016986,3]
[402456769,1768680658462,-500.0,0.00016986,3]
[402456771,1768680658472,-500.0,0.00016986,3]
[402456773,1768680658482,-500.0,0.00016986,3]
[402456775,1768680658491,-668.42,0.00016986,3]
[402456777,1768680658501,-500.0,0.00016986,3]
[402456779,1768680658511,-500.0,0.00016986,3]
[402456781,1768680658522,-500.0,0.00016986,3]
[402456783,1768680658532,-500.0,0.00016986,3]
[402456785,1768680658542,-502.2,0.00016986,3]
[402456787,1768680658552,-500.0,0.00016986,3]
[402456790,1768680658562,-500.0,0.00016986,3]
[402456792,1768680658572,-500.0,0.00016986,3]
[402456794,1768680658582,-500.0,0.00016986,3]
[402456796,1768680658592,-500.0,0.00016986,3]
[402456798,1768680658601,-500.0,0.00016986,3]
[402456800,1768680658610,-500.0,0.00016986,3]
[402456802,1768680658620,-500.0,0.00016986,3]
[402456804,1768680658629,-1001.13,0.00016986,3]
[402456806,1768680658639,-500.0,0.00016986,3]
[402456818,1768680658742,-795.63,0.00016986,3]
[402456820,1768680658751,-681.88,0.00016986,3]
[402456822,1768680658761,-610.18,0.00016986,3]
[402456824,1768680658770,-919.37,0.00016986,3]
[402456826,1768680658779,-500.0,0.00016986,3]
[402456828,1768680658789,-500.0,0.00016986,3]
[402456830,1768680658798,-500.0,0.00016986,3]
[402456832,1768680658808,-803.45,0.00016986,3]
[402456834,1768680658817,-1421.56,0.00016986,3]
[402456836,1768680658828,-500.0,0.00016986,3]
[402456838,1768680658839,-799.69,0.00016986,3]
[402456840,1768680658849,-775.52,0.00016986,3]
[402456842,1768680658858,-500.0,0.00016986,3]
[402456844,1768680658867,-500.0,0.00016986,3]
[402456846,1768680658876,-500.0,0.00016986,3]
[402456848,1768680658885,-500.0,0.00016986,3]
[402456850,1768680658896,-500.0,0.00016986,3]
[402456852,1768680658907,-842.59,0.00016986,3]
[402456854,1768680658917,-500.0,0.00016986,3]
[402456856,1768680658926,-822.16,0.00016986,3]
[402456858,1768680658935,-500.0,0.00016986,3]
[402456860,1768680658944,-500.0,0.00016986,3]
[402456862,1768680658952,-500.0,0.00016986,3]
[402456864,1768680658962,-500.0,0.00016986,3]
[402456866,1768680658971,-500.0,0.00016986,3]
[402456868,1768680658980,-500.0,0.00016986,3]
[402456870,1768680658990,-500.0,0.00016986,3]
[402456872,1768680658999,-500.0,0.00016986,3]
[402456874,1768680659012,-500.0,0.00016986,3]
[402456876,1768680659021,-1077.4,0.00016986,3]
[402456878,1768680659032,-1003.48,0.00016986,3]
[402456880,1768680659042,-806.24,0.00016986,3]
[402456882,1768680659051,-681.61,0.00016986,3]
[402456884,1768680659060,-500.0,0.00016986,3]
[402456886,1768680659069,-500.0,0.00016986,3]
[402456888,1768680659079,-500.0,0.00016986,3]
[402456890,1768680659088,-645.22,0.00016986,3]
[402456892,1768680659098,-1314.52,0.00016986,3]
[402456894,1768680659107,-599.92,0.00016986,3]
[402456896,1768680659116,-641.05,0.00016986,3]
[402456898,1768680659125,-500.0,0.00016986,3]
[402456900,1768680659135,-500.0,0.00016986,3]
[402456902,1768680659144,-500.0,0.00016986,3]
[402456904,1768680659153,-500.0,0.00016986,3]
[402456907,1768680659163,-500.0,0.00016986,3]
[402456908,1768680659172,-719.55,0.00016986,3]
[402456911,1768680659181,-500.0,0.00016986,3]
[402456912,1768680659190,-1000.0,0.00016986,2]
[402456914,1768680659200,-500.0,0.00016986,3]
[402456917,1768680659209,-500.0,0.00016986,3]
[402456918,1768680659219,-500.0,0.00016986,3]
[402456920,1768680659228,-500.0,0.00016986,3]
[402456923,1768680659238,-500.0,0.00016986,3]
[402456924,1768680659247,-500.0,0.00016986,3]
[402456926,1768680659258,-500.0,0.00016986,3]
[402456929,1768680659267,-500.0,0.00016986,3]
[402456931,1768680659277,-1209.49,0.00016986,3]
[402456933,1768680659286,-955.59,0.00016986,3]
[402456934,1768680659295,-500.0,0.00016986,3]
[402456936,1768680659305,-500.0,0.00016986,3]
[402456938,1768680659314,-500.0,0.00016986,3]
[402456939,1768680659323,-500.0,0.00016986,3]
[402456940,1768680659333,-734.88,0.00016986,3]
[402456941,1768680659342,-566.56,0.00016986,3]
[402456942,1768680659351,-500.0,0.00016986,3]
[402456943,1768680659361,-372.96596375,0.00016986,3]
[402456944,1768680659370,-566.1,0.00016986,3]
[402456945,1768680659380,-500.0,0.00016986,3]
[402456946,1768680659390,-500.0,0.00016986,3]
[402456947,1768680659399,-500.0,0.00016986,3]
[402456948,1768680659409,-500.0,0.00016986,3]
[402456949,1768680659418,-500.0,0.00016986,3]
[402456950,1768680659427,-500.0,0.00016986,3]
[402456951,1768680659435,-500.0,0.00016986,3]
[402456953,1768680659445,-500.0,0.00016986,3]
[402456955,1768680659454,-500.0,0.00016986,3]
[402456957,1768680659463,-914.46,0.00016986,3]
[402456959,1768680659473,-500.0,0.00016986,3]
[402456961,1768680659482,-738.38,0.00016986,3]
[402456963,1768680659491,-500.0,0.00016986,3]
[402456965,1768680659501,-900.03,0.00016986,3]
[402456967,1768680659510,-500.0,0.00016986,3]
[402456969,1768680659520,-1099.86,0.00016986,3]
[402456971,1768680659529,-500.0,0.00016986,3]
[402456973,1768680659540,-500.0,0.00016986,3]
[402456975,1768680659550,-500.0,0.00016986,3]
[402456977,1768680659559,-500.0,0.00016986,3]
[402456979,1768680659569,-500.0,0.00016986,3]
[402456981,1768680659578,-500.0,0.00016986,3]
[402456983,1768680659587,-500.0,0.00016986,3]
[402456985,1768680659597,-741.43,0.00016986,3]
[402456987,1768680659606,-579.54,0.00016986,3]
[402456989,1768680659615,-544.37,0.00016986,3]